Workbook

Sheet Лист1
A1: Школа | C1: МБОУ "Школа №113" Ново-Савиновского района | F1: Утвердил: | G1: должность | H1: Директор школы №113
A2: Типовое примерное меню приготавливаемых блюд | G2: фамилия | H2: Юнусова Э.Н.
A3: Возрастная категория | E3: 7-11 лет | G3: дата | H3: 15 | I3: 10 | J3: 2023
H4: день | I4: месяц | J4: год
A5: Неделя | B5: День недели | C5: Прием пищи | D5: Раздел меню | E5: Блюда | F5: Вес блюда, г | G5: Белки | H5: Жиры | I5: Углеводы | J5: Калорийность | K5: № рецептуры | L5: Цена
A6: 1 | B6: 1 | C6: Завтрак | D6: гор.блюдо | E6: Котлеты "Столичные" | F6: 90 | G6: 8.1 | H6: 4.05 | I6: 3.4 | J6: 83 | K6: ТТК 2023г
E7: Макаронные отварные с сыром | F7: 140 | G7: 5.39 | H7: 6.65 | I7: 29.98 | J7: 201 | K7: ТТК 2019г
D8: гор.напиток | E8: Напитки на выбор: Чай с сахаром/ Напиток из замороженной черной смородины | F8: 200 | G8: 0.06 | H8: 0.02 | I8: 9.35 | J8: 38 | K8: №630/1996г/ ТТК 2022г.
D9: хлеб | E9: Хлебная корзина (хлеб ржано-пшеничный, хлеб пшеничный) | F9: 20 | G9: 1.25 | H9: 1.08 | I9: 9.42 | J9: 46
D10: фрукты
E11: Салат-бар (помидоры свежие, огурцы свежие, фасоль консерв., сухарики, масло растит.) | F11: 60 | G11: 1.62 | H11: 6.1 | I11: 12.9 | J11: 113 | K11: ТТК 2023г.
D13: итого | F13: =SUM(F6:F12) -> 510 | G13: 16.42 | H13: 17.9 | I13: 65.05 | J13: 481 | L13: =SUM(L6:L12) -> 0
A14: =A6 -> 1 | B14: 1 | C14: Обед | D14: закуска
D15: 1 блюдо
D16: 2 блюдо
D17: гарнир
D18: напиток
D19: хлеб бел.
D20: хлеб черн.
D23: итого | F23: =SUM(F14:F22) -> 0 | G23: 0 | H23: 0 | I23: 0 | J23: 0 | L23: =SUM(L14:L22) -> 0
A24: =A6 -> 1 | B24: =B6 -> 1 | C24: Итого за день: | F24: =F13+F23 -> 510 | G24: =G13+G23 -> 16.42 | H24: =H13+H23 -> 17.9 | I24: =I13+I23 -> 65.05 | J24: =J13+J23 -> 481 | L24: =L13+L23 -> 0
A25: 1 | B25: 2 | C25: Завтрак | D25: гор.блюдо | E25: Жаркое из птицы (грудки куриные) | F25: 160 | G25: 12.98 | H25: 10.63 | I25: 28.5 | J25: 262 | K25: ТТК 2023г
D27: гор.напиток | E27: Напитки на выбор: Чай с сахаром, лимоном/ Напиток из вишни | F27: 200 | G27: 0.09 | H27: 0.45 | I27: 19.47 | J27: 83
D28: хлеб | E28: Хлебная корзина (хлеб ржано-пшеничный, хлеб пшеничный) | F28: 20 | G28: 1.25 | H28: 1.08 | I28: 9.42 | J28: 46
D29: фрукты | E29: Плоды свежие (яблоки) | F29: 100 | G29: 0.4 | H29: 0.4 | I29: 9.8 | J29: 47 | K29: №338/2015г.
E30: Салат-бар (огурцы свежие, капуста белокочанная, кукуруза консерв., сухарики, масло растит.) | F30: 60 | G30: 5.43 | H30: 6.65 | I30: 6.78 | J30: 108 | K30: ТТК 2023г.
D32: итого | F32: =SUM(F25:F31) -> 540 | G32: 20.15 | H32: 19.21 | I32: 73.97 | J32: 546 | L32: =SUM(L25:L31) -> 0
A33: =A25 -> 1 | B33: 2 | C33: Обед | D33: закуска
D34: 1 блюдо
D35: 2 блюдо
D36: гарнир
D37: напиток
D38: хлеб бел.
D39: хлеб черн.
D42: итого | F42: =SUM(F33:F41) -> 0 | G42: 0 | H42: 0 | I42: 0 | J42: 0 | L42: =SUM(L33:L41) -> 0
A43: =A25 -> 1 | B43: 2 | C43: Итого за день: | F43: =F32+F42 -> 540 | G43: 20.15 | H43: 19.21 | I43: 73.97 | J43: 546 | L43: =L32+L42 -> 0
A44: 1 | B44: 3 | C44: Завтрак | D44: гор.блюдо | E44: Сосиски отварные | F44: 100 | G44: 8.6 | H44: 4.8 | I44: 11.75 | J44: 125 | K44: №243/2015г.
E45: Каша гречневая вязкая с маслом | F45: 145 | G45: 3.31 | H45: 7.95 | I45: 20.59 | J45: 167 | K45: Акт
D46: гор.напиток | E46: Напитки на выбор: Чай с сахаром / Напиток яблочный | F46: 200 | G46: 0.06 | H46: 0.01 | I46: 10.2 | J46: 42 | K46: №630 1996г/ №701 2004г.
D47: хлеб | E47: Хлебная корзина (хлеб ржано-пшеничный, хлеб пшеничный) | F47: 20 | G47: 1.25 | H47: 1.08 | I47: 9.42 | J47: 46
D48: фрукты
E49: Салат-бар (морковь, свекла отварная, зеленый горошек конс., сухарики, масло растит.) | F49: 60 | G49: 2.53 | H49: 6.1 | I49: 15.07 | J49: 125 | K49: ТТК 2023г.
D51: итого | F51: =SUM(F44:F50) -> 525 | G51: 15.75 | H51: 19.94 | I51: 67.03 | J51: 505 | L51: =SUM(L44:L50) -> 0
A52: =A44 -> 1 | B52: 3 | C52: Обед | D52: закуска
D53: 1 блюдо
D54: 2 блюдо
D55: гарнир
D56: напиток
D57: хлеб бел.
D58: хлеб черн.
D61: итого | F61: =SUM(F52:F60) -> 0 | G61: 0 | H61: 0 | I61: 0 | J61: 0 | L61: =SUM(L52:L60) -> 0
A62: =A44 -> 1 | B62: 3 | C62: Итого за день: | F62: =F51+F61 -> 525 | G62: 15.75 | H62: 19.94 | I62: 67.03 | J62: 505 | L62: =L51+L61 -> 0
A63: 1 | B63: 4 | C63: Завтрак | D63: гор.блюдо | E63: Плов с говядиной | F63: 160 | G63: 12.2 | H63: 10.6 | I63: 23.09 | J63: 237 | K63: ТТК 2023г.
D65: гор.напиток | E65: Напитки на выбор: Чай с сахаром, лимоном / Напиток из замороженной черной смородины | F65: 200 | G65: 0.08 | H65: 0.02 | I65: 9.42 | J65: 39 | K65: ТТК 2021г/ ТТК 2022г.
D66: хлеб | E66: Хлебная корзина (хлеб ржано-пшеничный, хлеб пшеничный) | F66: 20 | G66: 1.25 | H66: 1.08 | I66: 9.42 | J66: 46
D67: фрукты | E67: Плоды свежие (яблоки) | F67: 100 | G67: 0.4 | H67: 0.4 | I67: 9.8 | J67: 47 | K67: №338/ 2015г.
E68: Салат-бар (помидоры свежие, морковь свежая, кукуруза конс., сухарики, масло растит.) | F68: 60 | G68: 1.95 | H68: 6.18 | I68: 12.3 | J68: 112 | K68: ТТК 2023г.
D70: итого | F70: =SUM(F63:F69) -> 540 | G70: 15.88 | H70: 18.28 | I70: 64.03 | J70: 481 | L70: =SUM(L63:L69) -> 0
A71: =A63 -> 1 | B71: 4 | C71: Обед | D71: закуска
D72: 1 блюдо
D73: 2 блюдо
D74: гарнир
D75: напиток
D76: хлеб бел.
D77: хлеб черн.
D80: итого | F80: =SUM(F71:F79) -> 0 | G80: 0 | H80: 0 | I80: 0 | J80: 0 | L80: =SUM(L71:L79) -> 0
A81: =A63 -> 1 | B81: 4 | C81: Итого за день: | F81: =F70+F80 -> 540 | G81: 15.88 | H81: 18.28 | I81: 64.03 | J81: 481 | L81: =L70+L80 -> 0
A82: 1 | B82: 5 | C82: Завтрак | D82: гор.блюдо | E82: Ёжики с мясом и рисом в соусе томатном | F82: 100 | G82: 8.2 | H82: 5 | I82: 10.23 | J82: 119 | K82: ТТК 2020г.
E83: Пюре картофельное | F83: 140 | G83: 3.06 | H83: 4.35 | I83: 20.56 | J83: 136 | K83: ТТК 2020г.
D84: гор.напиток | E84: Сок | F84: 180 | G84: 0.9 | H84: 0.18 | I84: 18.2 | J84: 83 | K84: ТТК 2022г.
D85: хлеб | E85: Хлебная корзина (хлеб ржано-пшеничный, хлеб пшеничный) | F85: 20 | G85: 1.25 | H85: 1.08 | I85: 9.42 | J85: 46
D86: фрукты
E87: Салат-бар (морковь, капуста белокачанная, зеленый горошек конс., сухарики, масло растит.) | F87: 60 | G87: 3.59 | H87: 6.1 | I87: 18 | J87: 141 | K87: ТТК 2023г.
D89: итого | F89: =SUM(F82:F88) -> 500 | G89: 17 | H89: 16.71 | I89: 76.41 | J89: 525 | L89: =SUM(L82:L88) -> 0
A90: =A82 -> 1 | B90: 5 | C90: Обед | D90: закуска
D91: 1 блюдо
D92: 2 блюдо
D93: гарнир
D94: напиток
D95: хлеб бел.
D96: хлеб черн.
D99: итого | F99: =SUM(F90:F98) -> 0 | G99: 0 | H99: 0 | I99: 0 | J99: 0 | L99: =SUM(L90:L98) -> 0
A100: =A82 -> 1 | B100: 5 | C100: Итого за день: | F100: =F89+F99 -> 500 | G100: 17 | H100: 16.71 | I100: 76.41 | J100: 525 | L100: =L89+L99 -> 0
A101: 2 | B101: 1 | C101: Завтрак | D101: гор.блюдо | E101: Грудка куриная в томатном соусе | F101: 90 | G101: 10.45 | H101: 6.5 | I101: 3.27 | J101: 113 | K101: Акт 2021г.
E102: Рис отварной | F102: 140 | G102: 3.57 | H102: 5.07 | I102: 37.34 | J102: 209 | K102: Акт 2016г.
D103: гор.напиток | E103: Напитки на выбор (чай с сахаром/ Напиток из замороженной чёрной смородины | F103: 200 | G103: 0.06 | H103: 0.02 | I103: 9.35 | J103: 38 | K103: №630/1998г. /ТТК 2022г.
D104: хлеб | E104: Хлебная корзина (хлеб ржано-пшеничный/ хлеб пшеничный | F104: 20 | G104: 1.25 | H104: 1.08 | I104: 9.42 | J104: 46
D105: фрукты
E106: Салат-бар (огурцы свежие, помидоры свежие, фасоль консерв., сухарики, масло растит.) | F106: 60 | G106: 1.62 | H106: 6.1 | I106: 6.92 | J106: 90 | K106: ТТК 2023г
D108: итого | F108: =SUM(F101:F107) -> 510 | G108: 16.95 | H108: 18.77 | I108: 66.3 | J108: 496 | L108: =SUM(L101:L107) -> 0
A109: =A101 -> 2 | B109: 1 | C109: Обед | D109: закуска
D110: 1 блюдо
D111: 2 блюдо
D112: гарнир
D113: напиток
D114: хлеб бел.
D115: хлеб черн.
D118: итого | F118: =SUM(F109:F117) -> 0 | G118: 0 | H118: 0 | I118: 0 | J118: 0 | L118: =SUM(L109:L117) -> 0
A119: =A101 -> 2 | B119: 1 | C119: Итого за день: | F119: =F108+F118 -> 510 | G119: 16.95 | H119: 18.77 | I119: 66.3 | J119: 496 | L119: =L108+L118 -> 0
A120: 2 | B120: 2 | C120: Завтрак | D120: гор.блюдо | E120: Жаркое по-домашнему | F120: 160 | G120: 8.64 | H120: 7.5 | I120: 21.63 | J120: 189 | K120: ТТК 2023г.
D122: гор.напиток | E122: Напитки на выбор (чай с сахаром, лимоном/ Напиток из вишни | F122: 200 | G122: 0.09 | H122: 0.45 | I122: 19.47 | J122: 83 | K122: ТТК 2021г. /ТТК 2023г.
D123: хлеб | E123: Хлебная корзина (хлеб ржано-пшеничный/ хлеб пшеничный | F123: 20 | G123: 1.25 | H123: 1.08 | I123: 9.42 | J123: 46
D124: фрукты | E124: Плоды свежие (яблоки) | F124: 100 | G124: 0.4 | H124: 0.4 | I124: 9.8 | J124: 47 | K124: 3338/2015г.
E125: Салат-бар (огурцы свежие, капуста белокачанная, кукуруза консерв., сухарики, масло растит.) | F125: 60 | G125: 5.43 | H125: 6.65 | I125: 6.78 | J125: 108 | K125: ТТК 2023г
D127: итого | F127: =SUM(F120:F126) -> 540 | G127: 15.81 | H127: 16.08 | I127: 67.1 | J127: 473 | L127: =SUM(L120:L126) -> 0
A128: =A120 -> 2 | B128: 2 | C128: Обед | D128: закуска
D129: 1 блюдо
D130: 2 блюдо
D131: гарнир
D132: напиток
D133: хлеб бел.
D134: хлеб черн.
D137: итого | F137: =SUM(F128:F136) -> 0 | G137: 0 | H137: 0 | I137: 0 | J137: 0 | L137: =SUM(L128:L136) -> 0
A138: =A120 -> 2 | B138: 2 | C138: Итого за день: | F138: =F127+F137 -> 540 | G138: 15.81 | H138: 16.08 | I138: 67.1 | J138: 473 | L138: =L127+L137 -> 0
A139: 2 | B139: 3 | C139: Завтрак | D139: гор.блюдо | E139: Сосиски отварные | F139: 100 | G139: 8.6 | H139: 4.8 | I139: 11.75 | J139: 125 | K139: №243/ 2015г.
E140: Макароны отварные с сыром | F140: 140 | G140: 5.39 | H140: 6.65 | I140: 29.98 | J140: 201 | K140: ТТК 2019г.
D141: гор.напиток | E141: Напитки на выбор (чай с сахаром/ Напиток яблочный | F141: 200 | G141: 0.06 | H141: 0.01 | I141: 10.2 | J141: 42 | K141: №630/1998г. /№701/2004г.
D142: хлеб | E142: Хлебная корзина (хлеб ржано-пшеничный/ хлеб пшеничный | F142: 20 | G142: 1.25 | H142: 1.08 | I142: 9.42 | J142: 46
D143: фрукты
E144: Салат-бар (свёкла отварная, морковь свежая, зелёный горошек консерв., сухарики, масло растит.) | F144: 60 | G144: 2.53 | H144: 6.1 | I144: 15.07 | J144: 125 | K144: ТТК 2023г
D146: итого | F146: =SUM(F139:F145) -> 520 | G146: 17.83 | H146: 18.64 | I146: 76.42 | J146: 539 | L146: =SUM(L139:L145) -> 0
A147: =A139 -> 2 | B147: 3 | C147: Обед | D147: закуска
D148: 1 блюдо
D149: 2 блюдо
D150: гарнир
D151: напиток
D152: хлеб бел.
D153: хлеб черн.
D156: итого | F156: =SUM(F147:F155) -> 0 | G156: 0 | H156: 0 | I156: 0 | J156: 0 | L156: =SUM(L147:L155) -> 0
A157: =A139 -> 2 | B157: 3 | C157: Итого за день: | F157: =F146+F156 -> 520 | G157: 17.83 | H157: 18.64 | I157: 76.42 | J157: 539 | L157: =L146+L156 -> 0
A158: 2 | B158: 4 | C158: Завтрак | D158: гор.блюдо | E158: Плов с куриными грудками | F158: 160 | G158: 13.14 | H158: 12 | I158: 34 | J158: 297 | K158: ТТК 2023г.
D160: гор.напиток | E160: Сок | F160: 180 | G160: 0.9 | H160: 0.18 | I160: 18.2 | J160: 83 | K160: ТТК 2022г.
D161: хлеб | E161: Хлебная корзина (хлеб ржано-пшеничный/ хлеб пшеничный | F161: 20 | G161: 1.25 | H161: 1.08 | I161: 9.42 | J161: 46
D162: фрукты | E162: Плоды свежие (яблоки) | F162: 100 | G162: 0.4 | H162: 0.4 | I162: 9.8 | J162: 47 | K162: №338/2015г.
E163: Салат-бар (морковь свежая, помидоры свежие, кукуруза консерв., сухарики, масло растит.) | F163: 60 | G163: 1.95 | H163: 6.18 | I163: 12.3 | J163: 112 | K163: ТТК 2023г
D165: итого | F165: =SUM(F158:F164) -> 520 | G165: 17.64 | H165: 19.84 | I165: 83.72 | J165: 585 | L165: =SUM(L158:L164) -> 0
A166: =A158 -> 2 | B166: 4 | C166: Обед | D166: закуска
D167: 1 блюдо
D168: 2 блюдо
D169: гарнир
D170: напиток
D171: хлеб бел.
D172: хлеб черн.
D175: итого | F175: =SUM(F166:F174) -> 0 | G175: 0 | H175: 0 | I175: 0 | J175: 0 | L175: =SUM(L166:L174) -> 0
A176: =A158 -> 2 | B176: 4 | C176: Итого за день: | F176: =F165+F175 -> 520 | G176: 17.64 | H176: 19.84 | I176: 83.72 | J176: 585 | L176: =L165+L175 -> 0
A177: 2 | B177: 5 | C177: Завтрак | D177: гор.блюдо | E177: Биточки рыбные из фарша минтая | F177: 90 | G177: 9.8 | H177: 2.01 | I177: 10.2 | J177: 98 | K177: ТТК 2021г.
E178: Пюре картофельное с маслом сливочным | F178: 145 | G178: 3.1 | H178: 7.97 | I178: 20.59 | J178: 169 | K178: Акт 2020г.
D179: гор.напиток | E179: Напитки на выбор (чай с сахаром/ Напиток из шиповника | F179: 200 | G179: 0.015 | H179: 0 | I179: 9.085 | J179: 36 | K179: №630/1998г. /ТТК 2021г.
D180: хлеб | E180: Хлебная корзина (хлеб ржано-пшеничный/ хлеб пшеничный | F180: 20 | G180: 1.25 | H180: 1.08 | I180: 9.42 | J180: 46
D181: фрукты
E182: Салат-бар (морковь свежая, капуста белокачанная, зелёный горошек консерв., сухарики, масло растит.) | F182: 60 | G182: 3.59 | H182: 6.1 | I182: 18 | J182: 141 | K182: ТТК 2023г
D184: итого | F184: =SUM(F177:F183) -> 515 | G184: 17.755 | H184: 17.16 | I184: 67.295 | J184: 490 | L184: =SUM(L177:L183) -> 0
A185: =A177 -> 2 | B185: 5 | C185: Обед | D185: закуска
D186: 1 блюдо
D187: 2 блюдо
D188: гарнир
D189: напиток
D190: хлеб бел.
D191: хлеб черн.
D194: итого | F194: =SUM(F185:F193) -> 0 | G194: 0 | H194: 0 | I194: 0 | J194: 0 | L194: =SUM(L185:L193) -> 0
A195: =A177 -> 2 | B195: 5 | C195: Итого за день: | F195: =F184+F194 -> 515 | G195: 17.755 | H195: 17.16 | I195: 67.295 | J195: 490 | L195: =L184+L194 -> 0
C196: Среднее значение за период: | F196: =(F24+F43+F62+F81+F100+F119+F138+F157+F176+F195)/(IF(F24=0,0,1)+IF(F43=0,0,1)+IF(F62=0,0,1)+IF(F81=0,0,1)+IF(F100=0,0,1)+IF(F119=0,0,1)+IF(F138=0,0,1)+IF(F157=0,0,1)+IF(F176=0,0,1)+IF(F195=0,0,1)) -> 522 | G196: 17.1185 | H196: 18.253 | I196: 70.7325 | J196: 512.1 | L196: =(L24+L43+L62+L81+L100+L119+L138+L157+L176+L195)/(IF(L24=0,0,1)+IF(L43=0,0,1)+IF(L62=0,0,1)+IF(L81=0,0,1)+IF(L100=0,0,1)+IF(L119=0,0,1)+IF(L138=0,0,1)+IF(L157=0,0,1)+IF(L176=0,0,1)+IF(L195=0,0,1)) -> 
